Cogmind - Beta 12 @@@ ROGUE MODE // 2023.07.13 @ 21:19:14 Player: password1 Result: Destroyed by P-70 Sage with High-powered Shock Rifle Performance ------------- Evolutions (5) 2500 Regions Visited (9) 1800 Robots Destroyed (95) 475 Value Destroyed (3016) 3016 Prototype IDs (8) 160 Alien Tech Used (0) 0 Bonus (375) 375 TOTAL SCORE: 8326 Bonus ------- High Alert Combat Kills 88 Follower Combat Kills 287 Cogmind --------- Core Integrity 0/1000 Matter 158/300 Energy 23/100 System Corruption 0% Temperature Warning (308) Movement Core (50) Location -5/Factory Parts ------- > --- POWER (1) -------- (None) > --- PROPULSION (4) --- (None) > --- UTILITY (9) ------ Machine Analyzer Improved Targeting Computer System Guard > --- WEAPON (3) ------- (None) > --- INVENTORY (5) ---- Nuclear Core Improved Deuterium Engine Angular Momentum Engine Small Storage Unit Improved Signal Interpreter Peak State ------------ > --- POWER ------------ Fission Core > --- PROPULSION ------- Light Treads Armored Treads Improved Medium Treads > --- UTILITY ---------- Improved Heat Sink Large Storage Unit Machine Analyzer Advanced Sensor Array Improved Targeting Computer Improved Light Armor Plating Layered Light Armor Plating Layered Light Armor Plating System Guard > --- WEAPON ----------- Improved Spread Laser Improved EM Pulse Cannon Antimatter Cannon > --- INVENTORY -------- Nuclear Core Improved Deuterium Engine Angular Momentum Engine Improved Heat Sink Small Storage Unit Weight Redist. System Improved Trap Scanner Improved Signal Interpreter Energy Filter Particle Charger Shock Absorption System Proton Missile Launcher Long-range Missile Launcher [Rating: 63] Favorites ----------- Power Nuclear Core Engine Deuterium Engine Power Core Nuclear Core Propulsion Armored Treads Treads Armored Treads Leg Aluminum Leg Utility Large Storage Unit Device Improved Heat Sink Storage Large Storage Unit Processor Improved Signal Interpreter Hackware Authchip [Device] Protection Improved Medium Armor Plating Weapon Improved Spread Laser Energy Gun Improved Spread Laser Energy Cannon Improved EM Pulse Cannon Ballistic Gun Light Assault Rifle Ballistic Cannon Antimatter Cannon Launcher Proton Missile Launcher Build | -11 -10 -9 -8 -8 -7 -7 -7 -6 -5 ------- Run | Jun Mat Mat Mat Sto Fac Low Low Fac Fac Slots Evolved 10 | . . 2 2 . 2 . . 2 2 Power . | . . . . . . . . . . Propulsion 2 | . . 2 . . . . . . . Utility 7 | . . . 2 . 2 . . 2 1 Weapon 1 | . . . . . . . . . 1 Parts Attached 109 | 6 8 19 11 12 11 . 1 36 5 Power 9 | 1 1 2 1 1 1 . . 2 . Engine 5 | 1 1 2 . 1 . . . . . Core 4 | . . . 1 . 1 . . 2 . Reactor . | . . . . . . . . . . Propulsion 31 | 2 3 9 4 7 2 . 1 3 . Treads 17 | . . . 4 7 2 . 1 3 . Leg 14 | 2 3 9 . . . . . . . Wheel . | . . . . . . . . . . Hover . | . . . . . . . . . . Flight . | . . . . . . . . . . Utility 38 | 1 . 4 4 2 7 . . 18 2 Device 12 | . . 3 . 1 2 . . 6 . Storage 3 | 1 . 1 . . 1 . . . . Processor 8 | . . . . . 1 . . 7 . Hackware 1 | . . . . . . . . 1 . Protection 14 | . . . 4 1 3 . . 4 2 Artifact . | . . . . . . . . . . Weapon 31 | 2 4 4 2 2 1 . . 13 3 Energy Gun 18 | 1 3 2 2 2 1 . . 7 . Energy Cannon 5 | . . 2 . . . . . 2 1 Ballistic Gun 2 | 1 1 . . . . . . . . Ballistic Cannon 1 | . . . . . . . . 1 . Launcher 5 | . . . . . . . . 3 2 Special Weapon . | . . . . . . . . . . Impact Weapon . | . . . . . . . . . . Slashing Weapon . | . . . . . . . . . . Piercing Weapon . | . . . . . . . . . . Special Melee Weapon . | . . . . . . . . . . Unidentified Prototypes 7 | . 1 . 1 1 . . . 4 . Parts Lost 23 | . 1 1 . . . . . 9 12 Power 3 | . . 1 . . . . . 1 1 Propulsion 5 | . . . . . . . . 2 3 Utility 10 | . . . . . . . . 5 5 Weapon 5 | . 1 . . . . . . 1 3 Highest Loss Streak 12 | . 1 1 . . . . . 5 12 To Critical Strikes . | . . . . . . . . . . Average Slot Usage (%) 93 | . 83 95 94 99 98 92 92 89 90 Engine 4 | . 14 10 7 6 5 . . . . Core 3 | . . . 1 2 1 7 7 6 4 Treads 22 | . . . 29 36 29 30 30 21 16 Leg 7 | . 27 43 6 . . . . . . Device 8 | . . 8 3 2 6 7 7 16 10 Storage 7 | . 14 11 9 9 7 7 7 6 4 Processor 7 | . . . . . 7 7 7 16 17 Protection 12 | . . . 18 24 21 15 15 5 15 Energy Gun 13 | . 27 20 14 17 15 15 15 6 4 Ballistic Cannon 1 | . . . . . . . . 3 4 Naked Turns . | . . . . . . . . . . Heaviest Build 76 | 13 16 42 58 58 63 63 63 76 67 Greatest Support 112 | 20 20 40 112 112 96 90 90 98 70 Greatest Overweight (x) 1 | . 1 1 1 . . . 1 1 . Average Overweight (x) . | . . . . . . . . . . Largest Inventory Capacity 15 | 8 8 15 15 15 15 15 15 15 15 Average Capacity 14 | 7 8 14 15 15 14 15 15 15 14 Most Carried 15 | 3 8 15 15 15 15 15 15 15 13 Average Carried 13 | 1 7 11 14 14 14 14 14 13 12 Final Capacity 15 | 8 8 15 15 15 15 15 15 15 5 Final Carried 15 | 3 8 15 15 15 15 15 14 14 5 Class Distribution -------------------- 65% | Mutant 13% | Commander-Mutant 13% | Scavenger-Mutant 7% | Tank Dominant Class ---------------- Mutant | -10/Materials Scavenger-Mutant | -9/Materials Mutant | -8/Materials Mutant | -8/Storage Commander-Mutant | -7/Factory Mutant | -7/Lower Caves Mutant | -7/Lower Caves Mutant | -6/Factory Tank | -5/Factory Resources | -11 -10 -9 -8 -8 -7 -7 -7 -6 -5 ----------- Run | Jun Mat Mat Mat Sto Fac Low Low Fac Fac Matter Collected 1793 | 258 70 170 34 414 91 30 44 638 44 Remotely . | . . . . . . . . . . Salvage Created 3211 | 95 367 559 171 831 192 . 138 642 216 Parts 194 | 2 29 42 8 53 13 . 4 27 16 Haulers Intercepted 1 | . . . . 1 . . . . . Recyclers Shooed 14 | . 2 2 . 3 . . . 5 2 Parts Field Recycled . | . . . . . . . . . . Retrieved Matter . | . . . . . . . . . . Parts Self-Destructed 8 | . . . . . . 4 4 . . Prevented . | . . . . . . . . . . Kills | -11 -10 -9 -8 -8 -7 -7 -7 -6 -5 ------- Run | Jun Mat Mat Mat Sto Fac Low Low Fac Fac Combat Hostiles Destroyed 68 | . 7 22 4 15 2 . 3 12 3 Guns 60 | . 7 22 4 15 2 . 3 6 1 Cannons 4 | . . . . . . . . 4 . AOE 3 | . . . . . . . . 1 2 Classes Destroyed 13 | 1 4 3 . 1 2 . . 2 . Worker 6 | . 1 1 . . . . . 2 2 Builder 3 | . . . . . 1 . . . 2 Hauler 1 | . . . . 1 . . . . . Recycler 8 | 1 1 1 . 3 1 . . 1 . Operator 2 | . 1 1 . . . . . . . Watcher 7 | . 1 . . 2 2 . . . 2 Swarmer 14 | . . 11 . 3 . . . . . Grunt 30 | . 7 6 3 6 . . 3 2 3 Brawler 1 | . . 1 . . . . . . . Duelist 1 | . . . . . . . . 1 . Sentry 15 | . . 4 1 6 1 . . 3 . Hunter 4 | . . . . . . . . 4 . Programmer 3 | . . . . . 1 . . 2 . Best Kill Streak 11 | 1 6 11 3 5 1 . 3 3 4 Combat Bots Only 10 | . 3 10 3 4 1 . 3 2 2 Max Kills in Single Turn 3 | 1 2 2 1 1 1 . 1 1 3 Gunslinging 1 | . . 1 . . . . . . . Exploded 2 | . . . . . . . . 1 2 Melee . | . . . . . . . . . . Uniques/NPCs Destroyed . | . . . . . . . . . . Combat | -11 -10 -9 -8 -8 -7 -7 -7 -6 -5 -------- Run | Jun Mat Mat Mat Sto Fac Low Low Fac Fac Damage Taken 6961 | . 166 627 282 789 550 . 313 2024 2210 Core 1497 | . 22 79 . 90 33 . 105 159 1009 Absorbed by Shields . | . . . . . . . . . . Redirected to Shielding 32 | . . . . . . . . 32 . Regen/Repaired (Parts) 43 | . . . . 43 . . . . . Core Remaining (%) 85 | 100 91 80 . 83 . . 80 81 . Volleys Fired 224 | 3 22 52 9 44 13 . 7 58 16 Largest 3 | 2 2 2 2 2 2 . 2 2 3 Hottest 184 | 70 130 130 150 150 150 . 150 144 184 Shots Fired 412 | 6 44 101 18 69 26 . 14 101 33 Gun 335 | 6 44 101 16 69 26 . 14 52 7 Cannon 60 | . . . 2 . . . . 34 24 Launcher 17 | . . . . . . . . 15 2 Special . | . . . . . . . . . . Kinetic 45 | 3 . . . . . . . 28 14 Thermal 317 | 3 44 101 16 69 26 . 14 37 7 Explosive 13 | . . . . . . . . 12 1 Electromagnetic 37 | . . . 2 . . . . 24 11 Robot Hit Streak 12 | 3 11 12 7 12 6 . 7 11 5 Robot Miss Streak 21 | 1 12 10 6 21 8 . 5 5 7 Penetration Max . | . . . . . . . . . . Secondary Targets 6 | . . 3 2 . . . 1 . . Max Gunslinging Chain 1 | . . 1 1 . . . 1 . . Shots Hit Robots 331 | 4 38 87 16 61 24 . 14 65 22 Core Hits 383 | 2 51 115 22 78 27 . 18 46 24 Critical Kills . | . . . . . . . . . . Critical Parts Destroyed . | . . . . . . . . . . Critical Strikes 7 | . . . . . . . . 6 1 Burn 2 | . . . . . . . . 2 . Blast 4 | . . . . . . . . 3 1 Corrupt 1 | . . . . . . . . 1 . Melee Attacks . | . . . . . . . . . . Impact . | . . . . . . . . . . Slashing . | . . . . . . . . . . Piercing . | . . . . . . . . . . Sneak Attacks . | . . . . . . . . . . Combat Hostiles . | . . . . . . . . . . Follow-up Attacks . | . . . . . . . . . . Damage Inflicted 7111 | 50 423 1067 242 1058 487 . 253 2338 1193 Guns 4581 | 46 423 1067 242 1048 462 . 253 884 156 Cannons 1279 | . . . . . . . . 632 647 Explosions 1209 | . . . . . . . . 819 390 Melee . | . . . . . . . . . . Ramming 42 | 4 . . . 10 25 . . 3 . Kinetic 995 | 8 . . . . . . . 606 381 Thermal 4559 | 38 423 1067 242 1048 462 . 253 870 156 Explosive 817 | . . . . . . . . 432 385 Electromagnetic 698 | . . . . . . . . 427 271 Impact . | . . . . . . . . . . Slashing . | . . . . . . . . . . Piercing . | . . . . . . . . . . Highest Corruption 1 | . . . . . 1 1 1 1 . Average Corruption 1 | . . . . . 1 1 1 1 . Corruption Purged 1 | . . . . . . . . 1 . Corruption Blocked . | . . . . . . . . . . Effects 15 | . . . . . 10 1 4 . . Message Errors 4 | . . . . . 2 . 2 . . Matter Fused 3 | . . . . . 2 . 1 . . Heat Flow Errors 4 | . . . . . 2 1 1 . . Energy Discharges 1 | . . . . . 1 . . . . Data Loss (minor) 1 | . . . . . 1 . . . . Data Loss (major) 1 | . . . . . 1 . . . . Alerts 1 | . . . . . 1 . . . . Overload Shots . | . . . . . . . . . . Overflow Damage 153 | . . . . . . . . 103 50 Projectiles 63 | . . . . . . . . 13 50 Explosions 90 | . . . . . . . . 90 . Melee . | . . . . . . . . . . Knockbacks 11 | . . . . . 1 . . 8 2 Impact 1 | . . . . . 1 . . . . Kinetic 9 | . . . . . . . . 7 2 Secondary 1 | . . . . . . . . 1 . Self-Inflicted Damage 3 | . . . . . . . . 3 . Shots 1 | . . . . . . . . 1 . Rammed 3 | . . . . 2 . . . 1 . Targets Rammed 6 | 1 . . . 3 1 . . 1 . Kicked 1 | 1 . . . . . . . . . Crushed 2 | . . . . 1 1 . . . . Highest Temperature 822 | 50 591 354 470 608 334 172 822 180 683 Average Temperature 187 | 26 188 91 250 213 135 89 401 50 371 Received Heat Transfer 1704 | . 93 159 108 261 147 . 144 150 642 Effects 85 | . 6 . 3 26 2 . 20 . 28 Shutdowns 17 | . 3 . 2 5 1 . 4 . 2 Energy Bleed 7 | . . . . 2 1 . 2 . 2 Interference 15 | . . . 1 3 . . 3 . 8 Matter Decay 7 | . . . . 4 . . 1 . 2 Short Circuit 8 | . . . . 2 . . 4 . 2 Damage (minor) 7 | . . . . 2 . . 2 . 3 Damage (major) 18 | . 3 . . 7 . . 3 . 5 Damage (core) 6 | . . . . 1 . . 1 . 4 Siege Activations . | . . . . . . . . . . Robots Corrupted 1 | . . . . . . . . 1 . Combat Hostiles 1 | . . . . . . . . 1 . Parts Fried 1 | . . . . . . . . 1 . Impact Corruptions . | . . . . . . . . . . Robots Melted . | . . . . . . . . . . Combat Hostiles . | . . . . . . . . . . Parts Melted 5 | . 1 . . 1 1 . . 2 . Heat Transferred 5000 | 111 525 1385 200 865 365 . 210 1209 130 Parts Sabotaged . | . . . . . . . . . . Parts Stolen . | . . . . . . . . . . Parts Stripped . | . . . . . . . . . . Power Chain Reactions . | . . . . . . . . . . Missiles Intercepted . | . . . . . . . . . . Alert | -11 -10 -9 -8 -8 -7 -7 -7 -6 -5 ------- Run | Jun Mat Mat Mat Sto Fac Low Low Fac Fac Peak Influence 547 | 5 184 547 267 546 231 . . 384 225 Initial 231 | . 3 43 167 112 231 . . 46 187 Average 168 | 2 88 235 182 325 119 . . 116 163 Maximum Alert Level 2 | . . 2 1 2 1 . . 1 1 Low Security (%) 59 | 100 100 47 80 17 66 . . 68 52 Level 1 33 | . . 30 19 54 33 . . 31 47 Level 2 7 | . . 21 . 27 . . . . . Level 3 . | . . . . . . . . . . Level 4 . | . . . . . . . . . . Level 5 . | . . . . . . . . . . High Security . | . . . . . . . . . . Max Security . | . . . . . . . . . . Squads Dispatched 16 | . 2 3 1 3 3 . . 3 1 Investigation 5 | . 1 1 . 2 . . . 1 . Extermination 4 | . . . . . 2 . . 2 . Reinforcement 7 | . 1 2 1 1 1 . . . 1 Assault . | . . . . . . . . . . Garrison . | . . . . . . . . . . Intercept . | . . . . . . . . . . Searches Triggered . | . . . . . . . . . . Construction Impeded 1 | . . 1 . . . . . . . Haulers Reinforced . | . . . . . . . . . . Active Scanning Responses . | . . . . . . . . . . Cargo Convoy Interrupts . | . . . . . . . . . . Stealth | -11 -10 -9 -8 -8 -7 -7 -7 -6 -5 --------- Run | Jun Mat Mat Mat Sto Fac Low Low Fac Fac Distress Signals 6 | . 1 . 1 3 . . . . 1 Communications Jammed . | . . . . . . . . . . Distress Signals . | . . . . . . . . . . Times Spotted 120 | . 11 29 5 26 12 . 3 18 16 Peak Tracking Total 8 | . 4 7 5 5 3 . 3 4 8 Tactical Retreats 4 | . . 2 . . . . . 2 . Traps | -11 -10 -9 -8 -8 -7 -7 -7 -6 -5 ------- Run | Jun Mat Mat Mat Sto Fac Low Low Fac Fac Traps Triggered 5 | . . 2 . 1 2 . . . . Indirectly . | . . . . . . . . . . Trap Hack Attempts . | . . . . . . . . . . Triggered . | . . . . . . . . . . Disarmed . | . . . . . . . . . . Reprogrammed . | . . . . . . . . . . Reused . | . . . . . . . . . . Traps Extracted . | . . . . . . . . . . Installed . | . . . . . . . . . . Triggered 1 | . . . . . . . . 1 . Machines | -11 -10 -9 -8 -8 -7 -7 -7 -6 -5 ---------- Run | Jun Mat Mat Mat Sto Fac Low Low Fac Fac Machines Disabled 9 | . . . . . . . . 9 . Max in Single Turn 8 | . . . . . . . . 8 . Machines Repaired . | . . . . . . . . . . Machines Sabotaged . | . . . . . . . . . . Overloaded Fab Kills . | . . . . . . . . . . Hacking | -11 -10 -9 -8 -8 -7 -7 -7 -6 -5 --------- Run | Jun Mat Mat Mat Sto Fac Low Low Fac Fac Machines Accessed 26 | . 3 3 1 5 8 . . 3 3 Terminals 18 | . 2 3 . 3 6 . . 1 3 Fabricators 2 | . . . . . 1 . . 1 . Repair Stations 1 | . . . . 1 . . . . . Recycling Units 4 | . 1 . 1 1 . . . 1 . Scanalyzers 1 | . . . . . 1 . . . . Garrison Access . | . . . . . . . . . . Total Hacks 62 | . 10 9 2 12 15 . . 7 7 Successful 37 | . 6 7 2 6 7 . . 3 6 Failed 25 | . 4 2 . 6 8 . . 4 1 Catastrophic 2 | . 1 . . 1 . . . . . Database Lockouts . | . . . . . . . . . . Manual . | . . . . . . . . . . Terminals 47 | . 7 9 . 8 13 . . 3 7 Fabricators 2 | . . . . . 1 . . 1 . Repair Stations 3 | . . . . 3 . . . . . Recycling Units 9 | . 3 . 2 1 . . . 3 . Scanalyzers 1 | . . . . . 1 . . . . Garrison Access . | . . . . . . . . . . Terminal Hacks 28 | . 5 7 . 3 6 . . 1 6 Record 7 | . 1 . . . 1 . . 1 4 Part Schematic 1 | . . . . . . . . . 1 Robot Analysis 1 | . 1 . . . . . . . . Prototype ID Bank 1 | . . . . . 1 . . . . Open DSF 1 | . . . . . 1 . . . . Emergency Access Points 1 | . . 1 . . . . . . . Fabricator Index 1 | . . . . . . . . . 1 Alert Level 2 | . . 1 . . 1 . . . . Unreport Threat 1 | . 1 . . . . . . . . Locate Traps 3 | . 1 1 . . 1 . . . . Dispatch Records 1 | . . . . 1 . . . . . Extermination Status 1 | . . . . 1 . . . . . Reinforcement Status 1 | . . . . 1 . . . . . Hauler Manifests 1 | . . 1 . . . . . . . Zone Layout 5 | . 1 3 . . 1 . . . . Fabricator Hacks 2 | . . . . . 1 . . 1 . Network Status 1 | . . . . . 1 . . . . Build 1 | . . . . . . . . 1 . Repair Station Hacks 3 | . . . . 3 . . . . . Scan Component 2 | . . . . 2 . . . . . Repair 1 | . . . . 1 . . . . . Recycling Unit Hacks 4 | . 1 . 2 . . . . 1 . Report Inventory 1 | . 1 . . . . . . . . Retrieve Matter 2 | . . . 1 . . . . 1 . Retrieve Components 1 | . . . 1 . . . . . . Scanalyzer . | . . . . . . . . . . Garrison Access Hacks . | . . . . . . . . . . Unauthorized Hacks . | . . . . . . . . . . Terminals . | . . . . . . . . . . Fabricators . | . . . . . . . . . . Repair Stations . | . . . . . . . . . . Recycling Units . | . . . . . . . . . . Scanalyzers . | . . . . . . . . . . Garrison Access . | . . . . . . . . . . Data Cores Recovered 1 | . 1 . . . . . . . . Used . | . . . . . . . . . . Hacking Detections 20 | . 3 2 . 5 5 . . 2 3 Full Trace Events 4 | . 1 . . 2 . . . 1 . Feedback Events 1 | . . . . . . . . 1 . Corruption 1 | . . . . . . . . 1 . Feedback Blocked . | . . . . . . . . . . Robot Schematics Acquired . | . . . . . . . . . . Robots Built . | . . . . . . . . . . Authchips . | . . . . . . . . . . Time . | . . . . . . . . . . Total Robot Build Rating . | . . . . . . . . . . Part Schematics Acquired 1 | . . . . . . . . . 1 Parts Built 2 | . . . . . . . . 2 . Authchips . | . . . . . . . . . . Time 95 | . . . . . . . . 95 . Total Part Build Rating 10 | . . . . . . . . 10 . Parts Repaired 1 | . . . . 1 . . . . . Time 61 | . . . . 61 . . . . . Parts Recycled . | . . . . . . . . . . Recycled Matter . | . . . . . . . . . . Retrieved Matter . | . . . . . . . . . . Retrieved Components 3 | . . . 3 . . . . . . Parts Scanalyzed . | . . . . . . . . . . Part Schematics Acquired . | . . . . . . . . . . Parts Damaged . | . . . . . . . . . . Bothacking | -11 -10 -9 -8 -8 -7 -7 -7 -6 -5 ------------ Run | Jun Mat Mat Mat Sto Fac Low Low Fac Fac Used RIF Installer . | . . . . . . . . . . Robots Hacked . | . . . . . . . . . . Non-combat . | . . . . . . . . . . Combat . | . . . . . . . . . . Robot Hacks Applied . | . . . . . . . . . . Relay Couplers Released . | . . . . . . . . . . Fabnet Peak Effective % . | . . . . . . . . . . Robots Rewired . | . . . . . . . . . . Allies Hacked . | . . . . . . . . . . Hacks Repelled . | . . . . . . . . . . Allies | -11 -10 -9 -8 -8 -7 -7 -7 -6 -5 -------- Run | Jun Mat Mat Mat Sto Fac Low Low Fac Fac Total Allies 10 | . . . . 10 . . . . . Largest Group 10 | . . . . 10 6 . . . . Highest-Rated Group 173 | . . . . 173 106 . . . . Highest-Rated Ally 29 | . . . . 29 29 . . . . Total Orders . | . . . . . . . . . . Ally Attacks 92 | . . . . 34 58 . . . . Total Damage 1044 | . . . . 426 618 . . . . Kills 9 | . . . . 5 4 . . . . Allies Corrupted 1 | . . . . . 1 . . . . Allies Melted . | . . . . . . . . . . Intel | -11 -10 -9 -8 -8 -7 -7 -7 -6 -5 ------- Run | Jun Mat Mat Mat Sto Fac Low Low Fac Fac Robot Analysis Total 1 | . 1 . . . . . . . . Derelict Logs Recovered 2 | . . . . . . 2 . . . Drone Launches . | . . . . . . . . . . Drone Recoveries . | . . . . . . . . . . Exploration | -11 -10 -9 -8 -8 -7 -7 -7 -6 -5 ------------- Run | Jun Mat Mat Mat Sto Fac Low Low Fac Fac Turns Passed 6734 | 114 370 807 327 914 1202 351 324 1804 521 Spaces Moved 3431 | 80 222 442 165 394 680 211 130 821 286 Core 16 | 4 . . . . . . . . 12 Treads 2650 | . . . 140 394 680 211 130 821 274 Legs 765 | 76 222 442 25 . . . . . . Wheels . | . . . . . . . . . . Hover . | . . . . . . . . . . Flight . | . . . . . . . . . . Fastest Speed 50 | 50 120 120 160 160 158 161 161 163 50 Average Speed 158 | 116 122 124 165 162 161 161 217 172 158 Slowest Speed 250 | 120 190 190 240 166 165 161 250 246 163 Overloaded Moves . | . . . . . . . . . . Propulsion Burnouts . | . . . . . . . . . . Robots Hopped . | . . . . . . . . . . Cave-ins Triggered . | . . . . . . . . . . Exploration Rate (%) 26 | 6 36 32 12 62 17 49 22 22 7 Regions Visited 9 Branch Regions 3 Pre-discovered Areas . | . . . . . . . . . . Known Exits Taken 2 | . . . . . 1 1 . . . Unknown Exits Taken 7 | 1 1 1 1 1 . . 1 1 . Scrap Searched 4 | . . . . . . 4 . . . Spaces Dug 1 | . . . . . . . . 1 . Terrain Destroyed 107 | . . . . . . . . 93 14 Melee . | . . . . . . . . . . Projectile 13 | . . . . . . . . 9 4 AOE 94 | . . . . . . . . 84 10 Terrain Rammed . | . . . . . . . . . . Walls Destroyed . | . . . . . . . . . . Machines Disabled . | . . . . . . . . . . Actions | -11 -10 -9 -8 -8 -7 -7 -7 -6 -5 --------- Run | Jun Mat Mat Mat Sto Fac Low Low Fac Fac Total 4340 | 92 279 600 203 598 757 223 158 1103 327 Wait 399 | . 3 54 2 123 24 11 20 146 16 Move 3423 | 79 221 441 164 393 680 210 129 820 286 Hop . | . . . . . . . . . . Pick Up 83 | 3 12 19 4 8 17 1 . 19 . Fast Attach 59 | 6 5 8 11 7 7 . . 13 2 Attach 32 | . 2 8 . 1 4 . . 14 3 Detach 4 | . 1 1 . . 1 . . 1 . Swap 20 | . 2 3 . 4 . . 1 10 . Drop 91 | . 11 14 13 15 11 1 1 21 4 Fire 224 | 3 22 52 9 44 13 . 7 58 16 Melee . | . . . . . . . . . . Ram . | . . . . . . . . . . Kick 1 | 1 . . . . . . . . . Crush 4 | . . . . 3 . . . 1 . Escape Stasis . | . . . . . . . . . . Rewire . | . . . . . . . . . . Trap . | . . . . . . . . . . Miscellaneous . | . . . . . . . . . . Route ------- -11/Junkyard -10/Materials -9/Materials -8/Materials -8/Storage -7/Factory -7/Lower Caves -7/Lower Caves -6/Factory -5/Factory History --------- Turn | Location | Event 2 | -11/Junkyard | Discovered new exit (range 16) 115 | -11/Junkyard | Entered Materials 303 | -10/Materials | Build established: Mutant 440 | -10/Materials | Discovered new exit (range 15) 485 | -10/Materials | Entered another Materials area 485 | -9/Materials | Evolved 2 slots: Propulsion x2 751 | -9/Materials | Build established: Scavenger-Mutant 924 | -9/Materials | Destroyed 10 combat bots 1190 | -9/Materials | Discovered new exit (range 15) 1292 | -9/Materials | Entered another Materials area 1292 | -8/Materials | Evolved 2 slots: Utility x2 1383 | -8/Materials | Discovered new exit (range 6) 1619 | -8/Materials | Entered Storage 1643 | -8/Storage | Build established: Mutant 1927 | -8/Storage | Repaired Broken Med. Treads 2320 | -8/Storage | Assisted by bots powering up and referring to "LRC-V3" 2468 | -8/Storage | Discovered new exit (range 12) 2533 | -8/Storage | Entered Factory 2533 | -7/Factory | Accompanied by 6 allies 2533 | -7/Factory | Evolved 2 slots: Utility x2 2612 | -7/Factory | Build established: Commander-Mutant 3546 | -7/Factory | Build established: Mutant 3651 | -7/Factory | Discovered new exit (range 8) 3681 | -7/Factory | Identified exit to Lower Caves 3735 | -7/Factory | Entered Lower Caves 3779 | -7/Lower Caves | Identified exit to Lower Caves 4086 | -7/Lower Caves | Entered another Lower Caves area 4337 | -7/Lower Caves | Discovered new exit (range 10) 4343 | -7/Lower Caves | Encountered a Warlord checkpoint 4410 | -7/Lower Caves | Entered Factory 4410 | -6/Factory | Evolved 2 slots: Utility x2 4726 | -6/Factory | Lost 5 parts (1p1n3u) 5529 | -6/Factory | Fabricated Force Field? 5627 | -6/Factory | Spotted B-75 Beast 6145 | -6/Factory | Discovered new exit (range 13) 6214 | -6/Factory | Entered another Factory area 6214 | -5/Factory | Evolved 2 slots: Utility x1, Weapon x1 6510 | -5/Factory | Build established: Tank 6718 | -5/Factory | Core integrity fell below 50% 6731 | -5/Factory | Core integrity fell below 20% 6735 | -5/Factory | Destroyed by P-70 Sage with High-powered Shock Rifle Last Messages --------------- Hrd. Medium Armor Plating destroyed. Overheating: System interference. Lrn. Missile Launcher temporarily disabled. Critical hit (Burn: +37). Adv. Sensor Array destroyed. Lyr. Light Armor Plating destroyed. Overheating: Core damaged (-170). U-05 Engineer lays Concrete. Lrn. Missile Launcher destroyed. U-05 Engineer lays Concrete. Overheating: Proton Missile Launcher damaged (-61). Dropped Proton Missile Launcher. Dropped Antimatter Cannon. U-05 Engineer lays Concrete. Overheating: Matter decay (-47). U-05 Engineer lays Concrete. Dropped Lrg. Storage Unit. U-05 Engineer lays Concrete. W-25 Informer sends out distress signal. U-05 Engineer lays Concrete. Map ----- +----------------------------------------------------+ | ?????????????????????????""" """??????"""?"""????? | | ??????????????????????????? ????#??????????????? | | ??????????????????????????? ??? #??????????????? | | ?????????????????????????##"+#### ######?????????? | | ?????????????????????????# ?????????? | | ????????????????????????? = ?????????? | | ????????????????????????? = ????????? | | ????????????????????????##%* ???????????? | | ???????????????????????? =! = ??????????????? | | ????????????????????????# % * #######???????T?? | | ????????????????????????# = !% ??????????? | | ????????????????????????# *[ ????????????? | | ????????????????????????# !!% ???????????????? | | ?????????????????????????#!!! ^#??""""???????????? | | ?????????????????????????#!]! +??""""???????????? | | ?????????????????????????#!] #??""""???????????? | | ?????????????????????????# #??""""???????????? | | ?????????????????????????# #?????????????????? | | ?????????????????????????# #?????????????????? | | ?????????????????????????# #?????????????????? | | ?????????????????????????# ##############????? | | ?????????????????????????# R # #????? | | ?????????????????????????# R #"" """""" #????? | | ?????????????????????????# #"" """""" #????? | | ????????????????########## #"T """""" #????? | | ?????????? @ #"" """""" #????? | | ?????????? #"" #????? | | ?????????? p /o """""" #????? | | ??????????? p # """""" !#????? | | ??????????? # """""" #????? | | ????????????##+########### # """""" #????? | | ?????????????????????????# # #????? | | ?????????????????????????# # #????? | | ?????????????????????????# ###########/##????? | | ?????????????????????????#w #?????? | | ?????????????????????????# #?????? | | ?????????????????????????#" """ """ #?????? | | ?????????????????????????#"" """ """ #?????? | | ??????????????????????????"" """ """ ####### | | ??????????????????????????"" % | | ??????????????????????????"" """ """ | | ??????????????????????????"T?""" """ | | ??????????????????????????""?""" """ | | ??????????????????????????""?? % | | ??????????????????????????""?""" """ ######### | | ??????????????????????????""?""" """ ????????# | | ????"""???????????????????"??"""?""" ????????# | | ????"""?????"Y"?????????????????? ?????????# | | ????"""?????"""??????????????"""?""" ?????????# | | ?????????????????????????????"""?"""????"?"?"?# | +----------------------------------------------------+ Best States ------------- Heat Dissipation 65 Energy Generation 18 Energy Capacity 310 Matter Stores 300 Matter Capacity 300 Sight Range 22 Robot Scan Range 16 Terrain Scan Density 10 Corruption Containment 8 Armor Coverage 1050 Resistance: KI 20 Resistance: EX 25 Utility Shielding 33 Weapon Shielding 33 Evasion (%) 55 Targeting Accuracy 6 Target Analysis 6 Recoil Reduction 4 Particle Charging 15 Authchip Count 1 Item Schematics ----------------- Hvy. Phase Cannon | -5/Factory | Hacked Robot Schematics ------------------ None Fabricated ------------ Force Field | x2 | -6/Factory | Preloaded Alien Tech Used ----------------- None Achievements -------------- I Spy Serviceable Loadout Challenges ------------ None Game ------ Seed NavigationSlugAccelerator Manual? 0 Play Time 01:47:06 Cumulative 13.5 hours Start 2023.07.13 @ 19:31:25 End 2023.07.13 @ 21:19:14 Sessions 1 Manual Loads 0 Difficulty Rogue Special Mode None Game No. 16 Rogue 16 Adventurer 0 Explorer 0 Win Type - Total 0 Types 0/0/0/0/0/0/0/0/0 Lore% 7 Gallery% 17 Achievement% 17 Wizard Run 0 Options --------- ASCII 0 Keyboard 0 Movement Arrows Keybinds 0 Fullscreen 2 Font 18/X11 Map View 76x50 Tactical HUD 0 Map Filters NONE Filters NONE Steam 1 RUN: dfb8f478-58b9-4203-b448-e4df21468e89